fUSD/lending_fUSD_20250113
["ID","MTS","AMOUNT","RATE_DAILY","PERIOD"]
[348730283,1736758251390,-6940.37343003,0.0001,2]
[348730284,1736758251400,-31126.50227901,0.0001,2]
[348730285,1736758251409,-658.2689816,0.0001,2]
[348730286,1736758251418,-7015476.15760024,0.0001,2]
[348730287,1736758251746,-21374.17669279,0.0001,2]
[348730288,1736758251757,-298322.94590833,0.0001,2]
[348730289,1736758251768,-405509.65353453,0.0001,2]
[348730290,1736758251780,-221056.65342883,0.0001,2]
[348730291,1736758251806,-2682.72,9.532e-05,2]
[348730292,1736758251815,-1584.21135916,0.0001,2]
[348730293,1736758251827,-13626.47147605,0.0001,2]
[348730294,1736758251839,-40591.51144084,0.0001,2]
[348730295,1736758251851,-8296.4823093,0.0001,2]
[348730296,1736758251863,-282.55999991,0.0001,2]
[348730297,1736758252113,-1500.0,9.432e-05,2]
[348730298,1736758252124,-500.0,9.532e-05,2]
[348730299,1736758252133,-500.0,9.532e-05,2]
[348730300,1736758252142,-2682.72,9.806e-05,2]
[348730301,1736758252151,-500.0,9.806e-05,2]
[348730302,1736758252161,-500.0,9.806e-05,2]
[348730303,1736758252170,-2095.78148165,9.941e-05,2]
[348730304,1736758252179,-7685.51194014,0.0001,2]
[348730305,1736758252190,-1649.538,0.0001,2]
[348730306,1736758252202,-151627.34820672,0.0001,2]
[348730307,1736758252213,-1203.06217438,0.0001,2]
[348730308,1736758252224,-106000.0,0.0001,2]
[348730309,1736758252327,-7729.47681043,0.0001,2]
[348730310,1736758252339,-4721464.75075329,0.0001,2]
[348730311,1736758252351,-46806.77453426,0.0001,2]
[348730312,1736758252372,-802.66496489,0.0001,2]
[348730313,1736758252384,-632.27300002,0.0001,2]
[348730314,1736758252395,-425.1582348,0.0001,2]
[348730315,1736758252408,-674.463281,0.0001,2]
[348730316,1736758252420,-1683.85,0.0001,2]
[348730317,1736758252433,-278.20000002,0.0001,2]
[348730318,1736758252451,-4853.69471217,0.0001,2]
[348730319,1736758252463,-523.904,0.0001,2]
[348730320,1736758252474,-658.478821,0.0001,2]
[348730321,1736758252487,-10160.1450597,0.0001,2]
[348730322,1736758252499,-14433.47878103,0.0001,2]
[348730323,1736758252510,-856.2799995,0.0001,2]
[348730324,1736758252523,-1808.27066652,0.0001,2]
[348730325,1736758252536,-1787.55805162,0.0001,2]
[348730326,1736758252557,-19005.82397978,0.0001,2]
[348730327,1736758252571,-1674.232872,0.0001,2]
[348730328,1736758252584,-3292.27565339,0.0001,2]
[348730329,1736758252597,-2240.91721747,0.0001,2]
[348730330,1736758252610,-2156.03251395,0.0001,2]
[348730331,1736758252621,-445.17891,0.0001,2]
[348730332,1736758252635,-722.19529931,0.0001,2]
[348730333,1736758252647,-878.29386108,0.0001,2]
[348730334,1736758252660,-1867.86,0.0001,2]
[348730335,1736758253026,-510.35913619,9.532e-05,2]
[348730336,1736758253040,-507.66952669,9.532e-05,2]
[348730337,1736758253050,-6318.15505265,0.0001,2]
[348730338,1736758253062,-43219.9551316,0.0001,2]
[348730339,1736758253074,-309.83834,0.0001,2]
[348730340,1736758253086,-59173.43226619,0.0001,2]
[348730341,1736758253096,-12174.07445771,0.0001,2]
[348730342,1736758253105,-3454.95571222,0.0001,2]
[348730343,1736758253116,-300.45,0.0001,2]
[348730344,1736758253126,-227.5,0.0001,2]
[348730345,1736758253136,-165.61378958,0.0001,2]
[348730346,1736758253146,-292.30818131,0.0001,2]
[348730347,1736758253155,-3000.0,0.0001,2]
[348730348,1736758253165,-25350.7349878,0.0001,2]
[348730349,1736758253177,-21533.27470492,0.0001,2]
[348730350,1736758253189,-10377.31968114,0.0001,2]
[348730351,1736758253205,-4163.72940921,0.0001,2]
[348730352,1736758253217,-1132.58449139,0.0001,2]
[348730353,1736758253228,-6855.90067227,0.0001,2]
[348730354,1736758253240,-3737.7599656,0.0001,2]
[348730355,1736758253251,-931.43101342,0.0001,2]
[348730356,1736758253263,-1580.61261136,0.0001,2]
[348730357,1736758253275,-1469.6840553,0.0001,2]
[348730358,1736758253286,-2702.92985538,0.0001,2]
[348730359,1736758253297,-753.78097259,0.0001,2]
[348730360,1736758253308,-690.52216534,0.0001,2]
[348730361,1736758253320,-20599.3653093,0.0001,2]
[348730362,1736758253669,-2095.78148165,9.981e-05,2]
[348730363,1736758253679,-1543.65574377,0.0001,2]
[348730364,1736758253691,-1296.48908062,0.0001,2]
[348730365,1736758253781,-13917.51677167,0.0001,2]
[348730366,1736758253793,-332.18935254,0.0001,2]
[348730367,1736758253804,-776.22907767,0.0001,2]
[348730368,1736758253816,-730.00753094,0.0001,2]
[348730369,1736758253827,-8987.6809423,0.0001,2]
[348730370,1736758253843,-4721.98835396,0.0001,2]
[348730371,1736758253863,-580.36774337,0.0001,2]
[348730372,1736758253896,-7252.10248016,0.0001,2]
[348730373,1736758253910,-37735.07818096,0.0001,2]
[348730374,1736758253928,-1449.07818022,0.0001,2]
[348730375,1736758317095,1124.24,8.219e-05,2]
[348730377,1736758613770,18154.06070951,9.132e-05,5]
[348730379,1736759278307,1068.02,8.219e-05,2]
[348730380,1736759332087,999.999999,8.219e-05,2]
[348730395,1736759432129,-250.0,8.732e-05,2]
[348730396,1736759432138,-1093.29,8.732e-05,2]
[348730397,1736759432147,-305.64,8.767e-05,2]
[348730398,1736759432157,-200.0,8.801e-05,2]
[348730399,1736759432166,-169.62,8.852e-05,2]
[348730400,1736759432175,-154.06,8.854e-05,2]
[348730401,1736759432184,-829.94,8.887e-05,2]
[348730402,1736759432192,-278.76,8.969e-05,2]
[348730403,1736759432201,-250.0,9.132e-05,2]
[348730404,1736759432210,-150.0,9.156e-05,2]
[348730405,1736759432219,-24206.6261721,9.157e-05,2]
[348730406,1736759432248,-3165.50000002,9.157e-05,2]
[348730407,1736759432259,-281.83415373,9.157e-05,2]
[348730408,1736759432303,-43807.0560916,9.157e-05,2]
[348730409,1736759432315,-10245.98358255,9.157e-05,2]
[348730410,1736759432325,-1000.0,9.312e-05,2]
[348730411,1736759432335,-169.6,9.33e-05,2]
[348730412,1736759432345,-572.60502449,9.333e-05,2]
[348730413,1736759432354,-572.60502449,9.333e-05,2]
[348730414,1736759432363,-20823.8387,9.432e-05,2]
[348730415,1736759432373,-5000.0,9.432e-05,2]
[348730416,1736759432382,-15442.9936,9.433e-05,2]
[348730417,1736759432392,-1708.61495375,9.484e-05,2]
[348730418,1736759432402,-1657.56,9.531e-05,2]
[348730419,1736759432411,-638.07,9.531e-05,2]
[348730420,1736759432420,-1271.43,9.531e-05,2]
[348730421,1736759432430,-3881.37,9.531e-05,2]
[348730422,1736759432439,-500.0,9.531e-05,2]
[348730423,1736759432448,-506.54,9.531e-05,2]
[348730424,1736759432460,-757.6,9.531e-05,2]
[348730425,1736759432470,-4215.41,9.531e-05,2]
[348730426,1736759432479,-1439.8,9.531e-05,2]
[348730427,1736759432488,-823.11,9.531e-05,2]
[348730428,1736759432498,-500.0,9.531e-05,2]
[348730429,1736759432508,-2120.28,9.531e-05,2]
[348730430,1736759432517,-754.38,9.531e-05,2]
[348730431,1736759432529,-638.25,9.531e-05,2]
[348730432,1736759432539,-1653.2,9.531e-05,2]
[348730433,1736759432548,-1242.5,9.531e-05,2]
[348730434,1736759432557,-537.64,9.531e-05,2]
[348730435,1736759432567,-1141.48,9.531e-05,2]
[348730436,1736759432576,-574.77,9.531e-05,2]
[348730437,1736759432585,-1135.03,9.531e-05,2]
[348730438,1736759432594,-2056.18,9.531e-05,2]
[348730439,1736759432603,-720.16,9.531e-05,2]
[348730440,1736759432612,-883.53,9.531e-05,2]
[348730441,1736759432622,-1209.48,9.531e-05,2]
[348730442,1736759432631,-1039.36,9.531e-05,2]
[348730443,1736759432640,-500.0,9.531e-05,2]
[348730444,1736759432649,-980.41,9.531e-05,2]
[348730445,1736759432658,-500.0,9.531e-05,2]
[348730446,1736759432668,-500.0,9.531e-05,2]
[348730447,1736759432677,-665.26,9.531e-05,2]
[348730448,1736759432686,-500.0,9.531e-05,2]
[348730449,1736759432695,-1159.38,9.531e-05,2]
[348730450,1736759432704,-500.0,9.531e-05,2]
[348730451,1736759432713,-976.242607,9.531e-05,2]
[348730452,1736759432722,-1178.8,9.531e-05,2]
[348730453,1736759432732,-500.0,9.531e-05,2]
[348730454,1736759432742,-624.26,9.531e-05,2]
[348730455,1736759432751,-515.92,9.531e-05,2]
[348730456,1736759432760,-156.484712,9.531e-05,2]
[348730457,1736759432769,-2294.67,9.531e-05,2]
[348730458,1736759432782,-2258.66,9.531e-05,2]
[348730459,1736759432791,-156.769681,9.531e-05,2]
[348730460,1736759432800,-584.05,9.531e-05,2]
[348730461,1736759432809,-500.0,9.531e-05,2]
[348730462,1736759432819,-500.0,9.531e-05,2]
[348730464,1736759433064,-501.33127077,9.532e-05,2]
[348730465,1736759433075,-500.335631,9.532e-05,2]
[348730466,1736759433085,-500.88216737,9.532e-05,2]
[348730467,1736759433095,-302.24167041,9.532e-05,2]
[348730468,1736759433104,-500.0,9.532e-05,2]
[348730469,1736759433114,-500.0,9.532e-05,2]
[348730470,1736759433124,-500.0,9.532e-05,2]
[348730471,1736759433134,-500.0,9.532e-05,2]
[348730472,1736759433143,-500.0,9.532e-05,2]
[348730473,1736759433152,-515.74137141,9.532e-05,2]
[348730474,1736759433161,-513.90036268,9.532e-05,2]
[348730475,1736759433171,-538.16736616,9.532e-05,2]
[348730476,1736759433181,-235.64513756,9.532e-05,2]
[348730477,1736759433190,-500.0,9.532e-05,2]
[348730478,1736759433200,-501.07641967,9.532e-05,2]
[348730479,1736759433210,-511.21533814,9.532e-05,2]
[348730480,1736759433219,-500.0,9.532e-05,2]
[348730481,1736759433228,-500.91676258,9.532e-05,2]
[348730482,1736759433238,-504.0796356,9.532e-05,2]
[348730483,1736759433247,-519.17547697,9.532e-05,2]
[348730484,1736759433257,-500.0,9.532e-05,2]
[348730485,1736759433267,-500.0,9.532e-05,2]
[348730486,1736759433278,-500.0,9.532e-05,2]
[348730487,1736759433288,-322.49183112,9.532e-05,2]
[348730488,1736759433297,-530.58277127,9.532e-05,2]
[348730489,1736759433308,-500.0,9.532e-05,2]
[348730490,1736759433317,-504.26027916,9.532e-05,2]
[348730491,1736759433327,-500.0,9.532e-05,2]
[348730492,1736759433337,-504.08475913,9.532e-05,2]
[348730493,1736759433346,-500.0,9.532e-05,2]
[348730494,1736759433355,-500.0,9.532e-05,2]
[348730495,1736759433365,-508.63749315,9.532e-05,2]
[348730496,1736759433374,-500.0,9.532e-05,2]
[348730497,1736759433384,-500.0,9.532e-05,2]
[348730498,1736759433393,-500.0,9.532e-05,2]
[348730499,1736759433402,-500.0,9.532e-05,2]
[348730500,1736759433411,-510.97849833,9.532e-05,2]
[348730501,1736759433420,-500.0,9.532e-05,2]
[348730502,1736759433429,-500.99656066,9.532e-05,2]
[348730503,1736759433438,-500.0,9.532e-05,2]
[348730504,1736759433448,-500.0,9.532e-05,2]
[348730505,1736759433462,-500.0,9.532e-05,2]
[348730506,1736759433472,-1948.61706646,9.532e-05,2]
[348730507,1736759433482,-1085.41,9.532e-05,2]
[348730508,1736759433491,-500.0,9.532e-05,2]
[348730509,1736759433501,-500.0,9.532e-05,2]
[348730510,1736759433511,-500.0,9.532e-05,2]
[348730511,1736759433520,-500.0,9.532e-05,2]
[348730512,1736759433534,-402.25806544,9.532e-05,2]
[348730513,1736759433556,-97.74193456,9.532e-05,2]
[348730514,1736759433566,-212.31577847,9.532e-05,2]
[348730515,1736759433578,-292.63489714,9.532e-05,2]
[348730516,1736759433588,-504.90022746,9.532e-05,2]
[348730517,1736759433597,-306.02201015,9.532e-05,2]
[348730518,1736759433628,-193.97798985,9.532e-05,2]
[348730519,1736759433638,-403.47541146,9.532e-05,2]
[348730520,1736759433647,-402.94459869,9.532e-05,2]
[348730521,1736759433690,-97.05540131,9.532e-05,2]
[348730522,1736759433700,-552.57,9.532e-05,2]
[348730523,1736759433710,-506.62215267,9.532e-05,2]
[348730524,1736759433719,-500.0,9.532e-05,2]
[348730525,1736759433729,-500.0,9.532e-05,2]
[348730526,1736759433740,-500.0,9.532e-05,2]
[348730527,1736759433749,-726.03,9.532e-05,2]
[348730528,1736759433759,-500.0,9.532e-05,2]
[348730529,1736759433768,-425.07821138,9.532e-05,2]
[348730530,1736759433780,-344.14423464,9.532e-05,2]
[348730531,1736759438044,-619.35,9.531e-05,2]
[348730532,1736759438054,-500.0,9.531e-05,2]
[348730533,1736759438064,-155.85576536,9.532e-05,2]
[348730534,1736759438073,-488.11961138,9.532e-05,2]
[348730535,1736759438083,-500.0,9.532e-05,2]
[348730536,1736759438091,-500.0,9.532e-05,2]
[348730537,1736759438100,-500.0,9.532e-05,2]
[348730538,1736759438110,-500.0,9.532e-05,2]
[348730539,1736759438119,-506.66151837,9.532e-05,2]
[348730540,1736759438128,-500.0,9.532e-05,2]
[348730541,1736759438137,-500.0,9.532e-05,2]
[348730542,1736759438147,-504.3336612,9.532e-05,2]
[348730543,1736759438156,-500.0,9.532e-05,2]
[348730544,1736759438165,-500.0,9.532e-05,2]
[348730545,1736759438175,-500.0,9.532e-05,2]
[348730546,1736759438184,-617.60453351,9.532e-05,2]
[348730547,1736759438193,-271.6110536,9.532e-05,2]
[348730548,1736759438202,-500.0,9.532e-05,2]
[348730549,1736759438212,-97.98546206,9.532e-05,2]
[348730550,1736759438223,-463.53862424,9.532e-05,2]
[348730551,1736759438233,-500.0,9.532e-05,2]
[348730552,1736759438242,-500.68236271,9.532e-05,2]
[348730553,1736759438251,-500.0,9.532e-05,2]
[348730554,1736759438260,-500.0,9.532e-05,2]
[348730555,1736759438270,-317.95079969,9.532e-05,2]
[348730556,1736759438280,-339.1117141,9.532e-05,2]
[348730557,1736759438290,-500.0,9.532e-05,2]
[348730558,1736759438299,-196.984993,9.532e-05,2]
[348730559,1736759438311,-303.015007,9.532e-05,2]
[348730560,1736759438320,-500.0,9.532e-05,2]
[348730561,1736759438328,-500.0,9.532e-05,2]
[348730562,1736759438338,-500.0,9.532e-05,2]
[348730563,1736759438347,-500.0,9.532e-05,2]
[348730564,1736759438356,-513.96,9.532e-05,2]
[348730565,1736759438365,-500.0,9.532e-05,2]
[348730566,1736759438375,-500.0,9.532e-05,2]
[348730567,1736759438384,-500.0,9.532e-05,2]
[348730568,1736759438394,-500.0,9.532e-05,2]
[348730569,1736759438403,-500.0,9.532e-05,2]
[348730570,1736759438412,-500.0,9.532e-05,2]
[348730571,1736759438422,-616.01905702,9.532e-05,2]
[348730572,1736759438431,-500.53,9.532e-05,2]
[348730573,1736759438440,-764.05,9.532e-05,2]
[348730574,1736759438451,-500.0,9.532e-05,2]
[348730575,1736759438462,-500.0,9.532e-05,2]
[348730576,1736759438472,-507.86807169,9.532e-05,2]
[348730577,1736759438481,-500.0,9.532e-05,2]
[348730578,1736759438491,-69.50329776,9.532e-05,2]
[348730579,1736759438503,-349.86524651,9.532e-05,2]
[348730580,1736759438521,-80.63145573,9.532e-05,2]
[348730581,1736759438531,-500.0,9.532e-05,2]
[348730582,1736759438540,-500.0,9.532e-05,2]
[348730583,1736759438550,-171.0045855,9.532e-05,2]
[348730584,1736759438561,-344.90301214,9.532e-05,2]
[348730585,1736759438570,-500.0,9.532e-05,2]
[348730586,1736759438579,-500.0,9.532e-05,2]
[348730587,1736759438587,-500.0,9.532e-05,2]
[348730588,1736759438596,-500.0,9.532e-05,2]
[348730589,1736759438605,-500.0,9.532e-05,2]
[348730590,1736759438614,-500.0,9.532e-05,2]
[348730591,1736759438623,-688.92678936,9.532e-05,2]
[348730592,1736759438634,-65.02321064,9.532e-05,2]
[348730593,1736759438643,-210.49537989,9.532e-05,2]
[348730594,1736759438655,-289.50462011,9.532e-05,2]
[348730595,1736759438663,-34.36450343,9.532e-05,2]
[348730596,1736759438688,-465.63549657,9.532e-05,2]
[348730597,1736759438697,-283.36609344,9.532e-05,2]
[348730598,1736759438706,-500.0,9.532e-05,2]
[348730599,1736759438715,-500.0,9.532e-05,2]
[348730600,1736759438724,-500.0,9.532e-05,2]
[348730601,1736759438734,-500.0,9.532e-05,2]
[348730602,1736759438743,-500.0,9.532e-05,2]
[348730603,1736759438752,-500.0,9.532e-05,2]
[348730604,1736759438761,-305.0596436,9.532e-05,2]
[348730605,1736759438771,-500.0,9.532e-05,2]
[348730607,1736759438781,-500.0,9.532e-05,2]
[348730609,1736759438790,-500.0,9.532e-05,2]
[348730611,1736759438799,-649.64,9.532e-05,2]
[348730613,1736759438809,-500.0,9.532e-05,2]
[348730615,1736759438818,-500.0,9.532e-05,2]
[348730617,1736759438827,-500.0,9.532e-05,2]
[348730619,1736759438836,-500.0,9.532e-05,2]
[348730621,1736759438845,-500.0,9.532e-05,2]
[348730623,1736759438854,-500.0,9.532e-05,2]
[348730625,1736759438863,-500.0,9.532e-05,2]
[348730627,1736759438872,-194.54547143,9.532e-05,2]
[348730629,1736759438881,-500.0,9.532e-05,2]
[348730631,1736759438890,-500.0,9.532e-05,2]
[348730633,1736759438899,-586.71,9.532e-05,2]
[348730635,1736759438908,-500.0,9.532e-05,2]
[348730637,1736759438917,-500.0,9.532e-05,2]
[348730639,1736759438926,-500.0,9.532e-05,2]
[348730640,1736759438935,-500.0,9.532e-05,2]
[348730642,1736759438945,-559.61,9.532e-05,2]
[348730644,1736759438954,-500.0,9.532e-05,2]
[348730646,1736759438964,-500.0,9.532e-05,2]
[348730648,1736759438973,-500.0,9.532e-05,2]
[348730650,1736759438982,-500.0,9.532e-05,2]
[348730652,1736759438992,-500.0,9.532e-05,2]
[348730654,1736759439001,-504.52140238,9.532e-05,2]
[348730656,1736759439010,-500.0,9.532e-05,2]
[348730658,1736759439019,-500.0,9.532e-05,2]
[348730660,1736759439028,-500.0,9.532e-05,2]
[348730662,1736759439043,-500.0,9.532e-05,2]
[348730664,1736759439052,-500.0,9.532e-05,2]
[348730666,1736759439061,-500.0,9.532e-05,2]
[348730669,1736759439071,-586.72,9.532e-05,2]
[348730671,1736759439080,-915.27,9.532e-05,2]
[348730673,1736759439090,-103.72817156,9.532e-05,2]
[348730675,1736759439103,-396.27182844,9.532e-05,2]
[348730677,1736759439112,-566.29397585,9.532e-05,2]
[348730679,1736759439121,-500.0,9.532e-05,2]
[348730681,1736759439130,-506.25,9.532e-05,2]
[348730683,1736759439139,-502.73397628,9.532e-05,2]
[348730685,1736759439149,-500.0,9.532e-05,2]
[348730687,1736759439158,-500.0,9.532e-05,2]
[348730689,1736759439167,-500.0,9.532e-05,2]
[348730691,1736759439176,-505.19160644,9.532e-05,2]
[348730693,1736759439185,-500.0,9.532e-05,2]
[348730695,1736759439195,-500.0,9.532e-05,2]
[348730697,1736759439204,-500.0,9.532e-05,2]
[348730699,1736759439213,-500.0,9.532e-05,2]
[348730701,1736759439222,-635.17075658,9.532e-05,2]
[348730703,1736759439231,-500.0,9.532e-05,2]
[348730705,1736759439240,-500.0,9.532e-05,2]
[348730707,1736759439249,-500.0,9.532e-05,2]
[348730709,1736759439260,-500.0,9.532e-05,2]
[348730711,1736759439269,-500.0,9.532e-05,2]
[348730713,1736759439278,-500.0,9.532e-05,2]
[348730715,1736759439290,-500.0,9.532e-05,2]
[348730717,1736759439299,-506.38569865,9.532e-05,2]
[348730719,1736759439308,-500.0,9.532e-05,2]
[348730721,1736759439318,-500.0,9.532e-05,2]
[348730723,1736759439327,-500.0,9.532e-05,2]
[348730725,1736759439336,-500.0,9.532e-05,2]
[348730727,1736759439345,-500.0,9.532e-05,2]
[348730729,1736759439354,-500.0,9.532e-05,2]
[348730731,1736759439364,-500.0,9.532e-05,2]
[348730732,1736759439373,-500.0,9.532e-05,2]
[348730733,1736759439382,-594.96,9.532e-05,2]
[348730734,1736759439391,-1268.18,9.532e-05,2]
[348730735,1736759439400,-500.0,9.532e-05,2]
[348730736,1736759439409,-500.0,9.532e-05,2]
[348730737,1736759439420,-500.0,9.532e-05,2]
[348730738,1736759439429,-500.0,9.532e-05,2]
[348730739,1736759439438,-500.0,9.532e-05,2]
[348730740,1736759439447,-500.0,9.532e-05,2]
[348730741,1736759439457,-554.67,9.532e-05,2]
[348730742,1736759439467,-500.0,9.532e-05,2]
[348730743,1736759439476,-500.0,9.532e-05,2]
[348730744,1736759439485,-500.0,9.532e-05,2]
[348730745,1736759439495,-505.51451093,9.532e-05,2]
[348730746,1736759439504,-670.04,9.532e-05,2]
[348730747,1736759439513,-701.03,9.532e-05,2]
[348730748,1736759439522,-445.07696134,9.532e-05,2]
[348730749,1736759439532,-500.0,9.532e-05,2]
[348730750,1736759439542,-506.53833763,9.532e-05,2]
[348730751,1736759439551,-500.0,9.532e-05,2]
[348730752,1736759439561,-500.0,9.532e-05,2]
[348730753,1736759439570,-500.0,9.532e-05,2]
[348730754,1736759439579,-500.0,9.532e-05,2]
[348730755,1736759439798,-500.0,9.532e-05,2]
[348730756,1736759439808,-409.94887404,9.532e-05,2]
[348730757,1736759439817,-337.93706751,9.532e-05,2]
[348730758,1736759439826,-501.58493963,9.532e-05,2]
[348730759,1736759439836,-500.0,9.532e-05,2]
[348730760,1736759439845,-500.0,9.532e-05,2]
[348730761,1736759439855,-500.0,9.532e-05,2]
[348730762,1736759439865,-719.68,9.532e-05,2]
[348730763,1736759439877,-500.0,9.532e-05,2]
[348730764,1736759439886,-1106.6,9.532e-05,2]
[348730765,1736759439895,-500.0,9.532e-05,2]
[348730766,1736759439905,-574.31,9.532e-05,2]
[348730767,1736759439914,-500.56457671,9.532e-05,2]
[348730768,1736759439923,-500.0,9.532e-05,2]
[348730769,1736759439933,-686.0,9.532e-05,2]
[348730770,1736759439942,-500.0,9.532e-05,2]
[348730771,1736759439951,-500.0,9.532e-05,2]
[348730772,1736759439960,-500.0,9.532e-05,2]
[348730773,1736759439970,-500.0,9.532e-05,2]
[348730774,1736759439979,-504.36999896,9.532e-05,2]
[348730776,1736759439989,-500.0,9.532e-05,2]
[348730777,1736759439998,-500.0,9.532e-05,2]
[348730778,1736759440007,-530.3,9.532e-05,2]
[348730779,1736759440017,-500.0,9.532e-05,2]
[348730780,1736759440026,-500.0,9.532e-05,2]
[348730781,1736759440041,-587.75230671,9.532e-05,2]
[348730783,1736759440051,-500.0,9.532e-05,2]
[348730785,1736759440060,-204.82068201,9.532e-05,2]
[348730786,1736759440070,-500.0,9.532e-05,2]
[348730787,1736759440079,-500.0,9.532e-05,2]
[348730788,1736759440088,-500.0,9.532e-05,2]
[348730789,1736759440097,-500.0,9.532e-05,2]
[348730790,1736759440106,-581.99,9.532e-05,2]
[348730791,1736759440115,-500.0,9.532e-05,2]
[348730792,1736759440124,-502.21263017,9.532e-05,2]
[348730793,1736759440134,-500.0,9.532e-05,2]
[348730794,1736759440143,-500.0,9.532e-05,2]
[348730795,1736759440151,-500.0,9.532e-05,2]
[348730796,1736759440160,-500.0,9.532e-05,2]
[348730797,1736759440170,-500.0,9.532e-05,2]
[348730798,1736759440179,-500.0,9.532e-05,2]
[348730799,1736759440188,-500.0,9.532e-05,2]
[348730800,1736759440197,-500.0,9.532e-05,2]
[348730801,1736759440206,-500.0,9.532e-05,2]
[348730802,1736759440215,-591.12,9.532e-05,2]
[348730803,1736759440224,-504.68075787,9.532e-05,2]
[348730804,1736759440234,-500.0,9.532e-05,2]
[348730805,1736759440244,-500.0,9.532e-05,2]
[348730806,1736759440253,-500.0,9.532e-05,2]
[348730807,1736759440262,-500.0,9.532e-05,2]
[348730808,1736759440271,-2580.57,9.532e-05,2]
[348730809,1736759440281,-188.67022601,9.532e-05,2]
[348730810,1736759440293,-624.33,9.532e-05,2]
[348730811,1736759440302,-509.06,9.532e-05,2]
[348730812,1736759440312,-500.0,9.532e-05,2]
[348730813,1736759440321,-500.0,9.532e-05,2]
[348730814,1736759440331,-500.0,9.532e-05,2]
[348730815,1736759440340,-163.09406721,9.532e-05,2]
[348730816,1736759440349,-500.0,9.532e-05,2]
[348730817,1736759440358,-500.0,9.532e-05,2]
[348730818,1736759440367,-500.0,9.532e-05,2]
[348730819,1736759440377,-500.0,9.532e-05,2]
[348730820,1736759440385,-500.0,9.532e-05,2]
[348730821,1736759440395,-1134.73,9.532e-05,2]
[348730822,1736759440403,-500.0,9.532e-05,2]
[348730823,1736759440413,-547.35,9.532e-05,2]
[348730824,1736759440422,-500.0,9.532e-05,2]
[348730825,1736759440431,-500.0,9.532e-05,2]
[348730826,1736759440440,-500.0,9.532e-05,2]
[348730827,1736759440450,-657.76,9.532e-05,2]
[348730828,1736759440464,-514.33,9.532e-05,2]
[348730829,1736759440473,-500.0,9.532e-05,2]
[348730830,1736759440482,-500.0,9.532e-05,2]
[348730831,1736759440491,-500.0,9.532e-05,2]
[348730832,1736759440501,-500.0,9.532e-05,2]
[348730833,1736759440511,-1745.25,9.532e-05,2]
[348730834,1736759440520,-606.77,9.532e-05,2]
[348730835,1736759440530,-500.0,9.532e-05,2]
[348730836,1736759440542,-500.0,9.532e-05,2]
[348730837,1736759440550,-500.0,9.532e-05,2]
[348730838,1736759440559,-500.0,9.532e-05,2]
[348730839,1736759440569,-869.26,9.532e-05,2]
[348730840,1736759440579,-500.0,9.532e-05,2]
[348730841,1736759440588,-536.71,9.532e-05,2]
[348730842,1736759440598,-500.0,9.532e-05,2]
[348730843,1736759440607,-500.0,9.532e-05,2]
[348730844,1736759440617,-500.0,9.532e-05,2]
[348730845,1736759440627,-500.0,9.532e-05,2]
[348730846,1736759440636,-959.744614,9.532e-05,2]
[348730847,1736759440645,-500.0,9.532e-05,2]
[348730848,1736759440655,-594.06,9.532e-05,2]
[348730849,1736759440664,-518.59580669,9.532e-05,2]
[348730850,1736759440683,-606.56,9.532e-05,2]
[348730851,1736759440694,-500.0,9.532e-05,2]
[348730852,1736759440705,-514.36221316,9.532e-05,2]
[348730853,1736759440715,-991.36,9.532e-05,2]
[348730854,1736759440724,-500.0,9.532e-05,2]
[348730855,1736759440734,-500.0,9.532e-05,2]
[348730856,1736759440743,-500.0,9.532e-05,2]
[348730857,1736759440753,-512.30197179,9.532e-05,2]
[348730858,1736759440763,-708.34,9.532e-05,2]
[348730859,1736759440772,-500.0,9.532e-05,2]
[348730861,1736759440782,-514.2098893,9.532e-05,2]
[348730862,1736759440795,-514.10187033,9.532e-05,2]
[348730863,1736759440804,-500.0,9.532e-05,2]
[348730864,1736759440814,-500.0,9.532e-05,2]
[348730865,1736759440823,-500.0,9.532e-05,2]
[348730866,1736759440833,-500.0,9.532e-05,2]